{"text_format":"1","workbook":"xlsx","n_sheets":6,"sheets":["Vorlage Zuschnittliste","Anleitung für Zuschnittliste","Arbeitsplatten","Nischenrückwände","Dekorspanplatten","Kanten"],"not_rendered":{"charts":0,"images":4,"macros":1,"external_links":0,"defined_names":3,"comments":0,"pivot_tables":0},"unopened":[],"bounds":{"document_bytes":16777216,"sheet_cells":100000,"rows_first":2000,"rows_last":500,"rows_between":2000,"halvings":0,"cell_chars":16384,"cell_head_chars":4096},"cells_cut":0,"cells_raw":0,"read":"whole","date_system":"1900"}

{"sheet":"Vorlage Zuschnittliste","index":0,"n_rows":32,"n_cols":13,"rows_kept":32,"cut":false,"hidden":false,"merged":[[0,0,2,2],[0,11,2,12],[0,3,2,8],[0,9,2,10]]}
["Anleitung\nzum Ausfüllen\n\n",null,null,"Zweite Seite\nDritte Seite",null,null,null,null,null,"Name:\nTel:\nKom.:",null,"2020-04-28T13:23:51"]
[]
[]
[]
[null,"Bezeichnung","Materialcode","Länge","Breite","Menge","Str.",null,"Kante vorne","Kante hinten","Kante links","Kante rechts","Info 1"]
[1,null,null,null,null,null,{"$f":"IF(C6=\"\",\"\",IF(ISNUMBER(MATCH(C6,Dekorspanplatten!$H$5:$H$62,0)),\"J\",\"N\"))","v":""}]
[2,null,null,null,null,null,{"$f":"IF(C7=\"\",\"\",IF(ISNUMBER(MATCH(C7,Dekorspanplatten!$H$5:$H$62,0)),\"J\",\"N\"))","v":""}]
[3,null,null,null,null,null,{"$f":"IF(C8=\"\",\"\",IF(ISNUMBER(MATCH(C8,Dekorspanplatten!$H$5:$H$62,0)),\"J\",\"N\"))","v":""}]
[4,null,null,null,null,null,{"$f":"IF(C9=\"\",\"\",IF(ISNUMBER(MATCH(C9,Dekorspanplatten!$H$5:$H$62,0)),\"J\",\"N\"))","v":""}]
[5,null,null,null,null,null,{"$f":"IF(C10=\"\",\"\",IF(ISNUMBER(MATCH(C10,Dekorspanplatten!$H$5:$H$62,0)),\"J\",\"N\"))","v":""}]
[6,null,null,null,null,null,{"$f":"IF(C11=\"\",\"\",IF(ISNUMBER(MATCH(C11,Dekorspanplatten!$H$5:$H$62,0)),\"J\",\"N\"))","v":""}]
[7,null,null,null,null,null,{"$f":"IF(C12=\"\",\"\",IF(ISNUMBER(MATCH(C12,Dekorspanplatten!$H$5:$H$62,0)),\"J\",\"N\"))","v":""}]
[8,null,null,null,null,null,{"$f":"IF(C13=\"\",\"\",IF(ISNUMBER(MATCH(C13,Dekorspanplatten!$H$5:$H$62,0)),\"J\",\"N\"))","v":""}]
[9,null,null,null,null,null,{"$f":"IF(C14=\"\",\"\",IF(ISNUMBER(MATCH(C14,Dekorspanplatten!$H$5:$H$62,0)),\"J\",\"N\"))","v":""}]
[10,null,null,null,null,null,{"$f":"IF(C15=\"\",\"\",IF(ISNUMBER(MATCH(C15,Dekorspanplatten!$H$5:$H$62,0)),\"J\",\"N\"))","v":""}]
[11,null,null,null,null,null,{"$f":"IF(C16=\"\",\"\",IF(ISNUMBER(MATCH(C16,Dekorspanplatten!$H$5:$H$62,0)),\"J\",\"N\"))","v":""}]
[12,null,null,null,null,null,{"$f":"IF(C17=\"\",\"\",IF(ISNUMBER(MATCH(C17,Dekorspanplatten!$H$5:$H$62,0)),\"J\",\"N\"))","v":""}]
[13,null,null,null,null,null,{"$f":"IF(C18=\"\",\"\",IF(ISNUMBER(MATCH(C18,Dekorspanplatten!$H$5:$H$62,0)),\"J\",\"N\"))","v":""}]
[14,null,null,null,null,null,{"$f":"IF(C19=\"\",\"\",IF(ISNUMBER(MATCH(C19,Dekorspanplatten!$H$5:$H$62,0)),\"J\",\"N\"))","v":""}]
[15,null,null,null,null,null,{"$f":"IF(C20=\"\",\"\",IF(ISNUMBER(MATCH(C20,Dekorspanplatten!$H$5:$H$62,0)),\"J\",\"N\"))","v":""}]
[16,null,null,null,null,null,{"$f":"IF(C21=\"\",\"\",IF(ISNUMBER(MATCH(C21,Dekorspanplatten!$H$5:$H$62,0)),\"J\",\"N\"))","v":""}]
[17,null,null,null,null,null,{"$f":"IF(C22=\"\",\"\",IF(ISNUMBER(MATCH(C22,Dekorspanplatten!$H$5:$H$62,0)),\"J\",\"N\"))","v":""}]
[18,null,null,null,null,null,{"$f":"IF(C23=\"\",\"\",IF(ISNUMBER(MATCH(C23,Dekorspanplatten!$H$5:$H$62,0)),\"J\",\"N\"))","v":""}]
[19,null,null,null,null,null,{"$f":"IF(C24=\"\",\"\",IF(ISNUMBER(MATCH(C24,Dekorspanplatten!$H$5:$H$62,0)),\"J\",\"N\"))","v":""}]
[20,null,null,null,null,null,{"$f":"IF(C25=\"\",\"\",IF(ISNUMBER(MATCH(C25,Dekorspanplatten!$H$5:$H$62,0)),\"J\",\"N\"))","v":""}]
[21,null,null,null,null,null,{"$f":"IF(C26=\"\",\"\",IF(ISNUMBER(MATCH(C26,Dekorspanplatten!$H$5:$H$62,0)),\"J\",\"N\"))","v":""}]
[22,null,null,null,null,null,{"$f":"IF(C27=\"\",\"\",IF(ISNUMBER(MATCH(C27,Dekorspanplatten!$H$5:$H$62,0)),\"J\",\"N\"))","v":""}]
[23,null,null,null,null,null,{"$f":"IF(C28=\"\",\"\",IF(ISNUMBER(MATCH(C28,Dekorspanplatten!$H$5:$H$62,0)),\"J\",\"N\"))","v":""}]
[24,null,null,null,null,null,{"$f":"IF(C29=\"\",\"\",IF(ISNUMBER(MATCH(C29,Dekorspanplatten!$H$5:$H$62,0)),\"J\",\"N\"))","v":""}]
[25,null,null,null,null,null,{"$f":"IF(C30=\"\",\"\",IF(ISNUMBER(MATCH(C30,Dekorspanplatten!$H$5:$H$62,0)),\"J\",\"N\"))","v":""}]
[26,null,null,null,null,null,{"$f":"IF(C31=\"\",\"\",IF(ISNUMBER(MATCH(C31,Dekorspanplatten!$H$5:$H$62,0)),\"J\",\"N\"))","v":""}]
[27,null,null,null,null,null,{"$f":"IF(C32=\"\",\"\",IF(ISNUMBER(MATCH(C32,Dekorspanplatten!$H$5:$H$62,0)),\"J\",\"N\"))","v":""}]

{"sheet":"Anleitung für Zuschnittliste","index":1,"n_rows":40,"n_cols":12,"rows_kept":40,"cut":false,"hidden":false,"merged":[[4,0,5,1],[2,0,3,1],[28,0,28,1],[29,0,29,1],[28,2,28,7],[29,2,29,7],[6,0,7,1],[14,2,15,11],[0,0,1,1],[27,2,27,7],[25,2,25,7],[27,0,27,1],[25,0,25,1],[26,0,26,1],[26,2,26,7],[10,2,13,11],[10,0,13,1],[8,0,9,1],[0,2,1,11],[8,2,9,11],[6,2,7,11],[4,2,5,11],[2,2,3,11],[14,0,15,1]]}
["Bezeichnung",null,"z.B. Seite, Boden, Front etc."]
[]
["Materialcode",null,"Diese Codes aus den Listen der Lagerdekore auswählen. Diese setzen sich aus drei Teilen zusammen, zuerst das Material z.B. DP für Dekorplatte, dann Stärke des Materials, und als letztes das Dekor, z.B. DP19U10100"]
[]
["Länge / Breite (in mm)",null,"Bei Platten mit Maserung (Struktur) darauf achten, dass die Maserung, bei diesen, immer der Länge nach verläuft."]
[]
["Menge"]
[]
["Str (Struktur)",null,"Trägt sich automatisch ein."]
[]
["Kanten ",null,"Die Kanten werden wie an der Beispielplatte angebracht. Die Kantencodes für alle Lagerdekore befinden sich auf dem sechsten Blatt, diese setzten sich zusammen aus Material (ABS oder PP), Breite 23/33/43, Stärke 10/15/20 (1, 1,5, 2 mm) und Dekor\nz.B. ABS2320U10100. \nNicht vorhande Kantendekore werden mit dem UNI bzw bei Schutzkanten mit dem PASSEND Code ersetzt."]
[]
[]
[]
["Info 1",null,"Für Informationen zu Fräsungen z.B. Reihenlöchern, Griffbohrungen etc. oder sonstigen Anmerkungen."]
[]
["Beispielplatte:",null,null," "]
[]
[]
[]
[]
[]
[]
[]
["Korpusmaterial:",null,null,null,null,null,null,null,"Lager Dekore:"]
["Materialcode",null,"Kurzbeschreibung"]
["DP25U10100",null,"Dekorspanplatte 25 mm U10100 SD Schneeweiss"]
["DP19U10100",null,"Dekorspanplatte 19 mm U10100 SD Schneeweiss"]
["DP13U10100",null,"Dekorspanplatte 13 mm U10100 SD Schneeweiss"]
["DP08U10100",null,"Dekorspanplatte 8 mm U10100 SD Schneeweiss"]
[]
[]
["Beispiel:"]
[]
[null,"Bezeichnung","Materialcode","Länge","Breite","Menge","Str.","Kante vorne","Kante hinten","Kante links","Kante rechts","Info 1"]
[1,"Arbeitsplatte","AP60R20027",2300,600,1,"J",null,null,null,"PP4315R20027"]
[2,"SEITE","DP19U10100","2000.0","600.0",2,"N","ABS2320U10100","SK2304U10100","SK2304U10101","SK2304U10102","Reihenloch"]
[3,"BODEN","DP19U10100","562.0","560.0",2,"N","ABS2320U10100","SK2304U10100"]
[4,"FACHBODEN","DP19U10100","561.0","550.0",1,"N","ABS2320U10100","SK2304U10100","SK2304U10101","SK2304U10102"]
[5,"FRONT","DP19R20027","2000.0","600.0",1,"J","ABS2320R20027","ABS2320R20027","ABS2320R20027","ABS2320R20027","Griffbohrung"]

{"sheet":"Arbeitsplatten","index":2,"n_rows":40,"n_cols":8,"rows_kept":40,"cut":false,"hidden":false,"merged":[[1,0,1,1],[2,3,2,4],[2,6,2,7],[0,0,0,7]]}
["Arbeitsplatten"]
[]
["600 mm Arbeitsplatten",null,null,"900 mm Arbeitsplatten",null,null,"1200 mm Arbeitsplatten"]
["Materialcode","Kurzbeschreibung",null,"Materialcode","Kurzbeschreibung",null,"Materialcode","Kurzbeschreibung"]
["AP60R20027","Arbeitsplatte 600 x 39 mm R20027 RT Pale Lancelot Oak",null,"AP90R20027","Arbeitsplatte 900 x 39 mm R20027 RT Pale Lancelot Oak",null,"AP120R20027","Arbeitsplatte 1200 x 39 mm R20027 RT Pale Lancelot Oak"]
["AP60R20128","Arbeitsplatte 600 x 39 mm R20128 RT Sonoma Eiche Hell",null,"AP90R20128","Arbeitsplatte 900 x 39 mm R20128 RT Sonoma Eiche Hell",null,"AP120R20128","Arbeitsplatte 1200 x 39 mm R20128 RT Sonoma Eiche Hell"]
["AP60K34139","Arbeitsplatte 600 x 39 mm K34139 AW Eiche Sanremo Sand",null,"AP90K34139","Arbeitsplatte 900 x 39 mm K34139 AW Eiche Sanremo Sand",null,"AP120K34139","Arbeitsplatte 1200 x 39 mm K34139 AW Eiche Sanremo Sand"]
["AP60K5414","Arbeitsplatte 600 x 39 mm K5414 AW Eiche Endgrain Classic",null,"AP90K5414","Arbeitsplatte 900 x 39 mm K5414 AW Eiche Endgrain Classic",null,"AP120K5414","Arbeitsplatte 1200 x 39 mm K5414 AW Eiche Endgrain Classic"]
["AP60K5284","Arbeitsplatte 600 x 39 mm K5284 AN Eiche Roosevelt",null,"AP90K5284","Arbeitsplatte 900 x 39 mm K5284 AN Eiche Roosevelt",null,"AP120K5284","Arbeitsplatte 1200 x 39 mm K5284 AN Eiche Roosevelt"]
["AP60K5413","Arbeitsplatte 600 x 39 mm K5413 AW Eiche Endgrain Cognac",null,"AP90K5413","Arbeitsplatte 900 x 39 mm K5413 AW Eiche Endgrain Cognac",null,"AP120K5413","Arbeitsplatte 1200 x 39 mm K5413 AW Eiche Endgrain Cognac"]
["AP60R24030","Arbeitsplatte 600 x 39 mm R24030 FG Buche Scandic Hell",null,"AP90R24030","Arbeitsplatte 900 x 39 mm R24030 FG Buche Scandic Hell",null,"AP120R24030","Arbeitsplatte 1200 x 39 mm R24030 FG Buche Scandic Hell"]
["AP60KBV932","Arbeitsplatte 600 x 39 mm KBV932 Si Atacama Kirschbaum",null,"AP90KBV932","Arbeitsplatte 900 x 39 mm KBV932 Si Atacama Kirschbaum",null,"AP120KBV932","Arbeitsplatte 1200 x 39 mm KBV932 Si Atacama Kirschbaum"]
["AP60KiR967","Arbeitsplatte 600 x 39 mm KiR967 In Kiefer Rustikal",null,"AP90KiR967","Arbeitsplatte 900 x 39 mm KiR967 In Kiefer Rustikal",null,"AP120KiR967","Arbeitsplatte 1200 x 39 mm KiR967 In Kiefer Rustikal"]
["AP60R27001","Arbeitsplatte 600 x 39 mm R27001 VV Koenigsahorn",null,"AP90R27001","Arbeitsplatte 900 x 39 mm R27001 VV Koenigsahorn",null,"AP120R27001","Arbeitsplatte 1200 x 39 mm R27001 VV Koenigsahorn"]
["AP60NU725","Arbeitsplatte 600 x 39 mm NU725 PoF Lyon Nussbaum ",null,"AP90NU725","Arbeitsplatte 900 x 39 mm NU725 PoF Lyon Nussbaum ",null,"AP120NU725","Arbeitsplatte 1200 x 39 mm NU725 PoF Lyon Nussbaum "]
["AP60K4946","Arbeitsplatte 600 x 39 mm K4946 AT Hemlock Lava",null,"AP90K4946","Arbeitsplatte 900 x 39 mm K4946 AT Hemlock Lava",null,"AP120K4946","Arbeitsplatte 1200 x 39 mm K4946 AT Hemlock Lava"]
["AP60K44374","Arbeitsplatte 600 x 39 mm K44374 DP Beton Art Opalgrau",null,"AP90K44374","Arbeitsplatte 900 x 39 mm K44374 DP Beton Art Opalgrau",null,"AP120K44374","Arbeitsplatte 1200 x 39 mm K44374 DP Beton Art Opalgrau"]
["AP60K44375","Arbeitsplatte 600 x 39 mm K44375 DP Beton Perlgrau",null,"AP90K44375","Arbeitsplatte 900 x 39 mm K44375 DP Beton Perlgrau",null,"AP120K44375","Arbeitsplatte 1200 x 39 mm K44375 DP Beton Perlgrau"]
["AP60K34321","Arbeitsplatte 600 x 39 mm K34321 DP Oxid",null,"AP90K34321","Arbeitsplatte 900 x 39 mm K34321 DP Oxid",null,"AP120K34321","Arbeitsplatte 1200 x 39 mm K34321 DP Oxid"]
["AP60K4398","Arbeitsplatte 600 x 39 mm K4398 DP Rusty Iron",null,"AP90K4398","Arbeitsplatte 900 x 39 mm K4398 DP Rusty Iron",null,"AP120K4398","Arbeitsplatte 1200 x 39 mm K4398 DP Rusty Iron"]
["AP60H437","Arbeitsplatte 600 x 39 mm H437 Ce Campino Concrete",null,"AP90H437","Arbeitsplatte 900 x 39 mm H437 Ce Campino Concrete",null,"AP120H437","Arbeitsplatte 1200 x 39 mm H437 Ce Campino Concrete"]
["AP60H317","Arbeitsplatte 600 x 39 mm H317 Ce Campino Patina",null,"AP90H317","Arbeitsplatte 900 x 39 mm H317 Ce Campino Patina",null,"AP120H317","Arbeitsplatte 1200 x 39 mm H317 Ce Campino Patina"]
["AP60ME873","Arbeitsplatte 600 x 39 mm ME873 Ce Metall Versicolour",null,"AP90ME873","Arbeitsplatte 900 x 39 mm ME873 Ce Metall Versicolour",null,"AP120ME873","Arbeitsplatte 1200 x 39 mm ME873 Ce Metall Versicolour"]
["AP60K5579","Arbeitsplatte 600 x 39 mm K5579 DP Oxid Dark Brown",null,"AP90K5579","Arbeitsplatte 900 x 39 mm K5579 DP Oxid Dark Brown",null,"AP120K5579","Arbeitsplatte 1200 x 39 mm K5579 DP Oxid Dark Brown"]
["AP60K5853","Arbeitsplatte 600 x 39 mm K5853 PE Titan",null,"AP90K5853","Arbeitsplatte 900 x 39 mm K5853 PE Titan",null,"AP120K5853","Arbeitsplatte 1200 x 39 mm K5853 PE Titan"]
["AP60K37978","Arbeitsplatte 600 x 39 mm K37978 DC Mocca",null,"AP90K37978","Arbeitsplatte 900 x 39 mm K37978 DC Mocca",null,"AP120K37978","Arbeitsplatte 1200 x 39 mm K37978 DC Mocca"]
["AP60K37979","Arbeitsplatte 600 x 39 mm K37979 DC Tabacco",null,"AP90K37979","Arbeitsplatte 900 x 39 mm K37979 DC Tabacco",null,"AP120K37979","Arbeitsplatte 1200 x 39 mm K37979 DC Tabacco"]
["AP60SL239","Arbeitsplatte 600 x 39 mm SL239 C Salome Manila",null,"AP90SL239","Arbeitsplatte 900 x 39 mm SL239 C Salome Manila",null,"AP120SL239","Arbeitsplatte 1200 x 39 mm SL239 C Salome Manila"]
["AP60S60002","Arbeitsplatte 600 x 39 mm S60002 FG Belmont Beige",null,"AP90S60002","Arbeitsplatte 900 x 39 mm S60002 FG Belmont Beige",null,"AP120S60002","Arbeitsplatte 1200 x 39 mm S60002 FG Belmont Beige"]
["AP60S60004","Arbeitsplatte 600 x 39 mm S60004 FG Belmont Grau",null,"AP90S60004","Arbeitsplatte 900 x 39 mm S60004 FG Belmont Grau",null,"AP120S60004","Arbeitsplatte 1200 x 39 mm S60004 FG Belmont Grau"]
["AP60FR418","Arbeitsplatte 600 x 39 mm FR418 C Freestone Grau",null,"AP90FR418","Arbeitsplatte 900 x 39 mm FR418 C Freestone Grau",null,"AP120FR418","Arbeitsplatte 1200 x 39 mm FR418 C Freestone Grau"]
["AP60S68013","Arbeitsplatte 600 x 39 mm S68013 SD Speckstein Schwarz",null,"AP90S68013","Arbeitsplatte 900 x 39 mm S68013 SD Speckstein Schwarz",null,"AP120S68013","Arbeitsplatte 1200 x 39 mm S68013 SD Speckstein Schwarz"]
["AP60SC475","Arbeitsplatte 600 x 39 mm SC475 Pe Porto Schiefer",null,"AP90SC475","Arbeitsplatte 900 x 39 mm SC475 Pe Porto Schiefer",null,"AP120SC475","Arbeitsplatte 1200 x 39 mm SC475 Pe Porto Schiefer"]
["AP60K4892","Arbeitsplatte 600 x 39 mm K4892 DP Pietra Grey",null,"AP90K4892","Arbeitsplatte 900 x 39 mm K4892 DP Pietra Grey",null,"AP120K4892","Arbeitsplatte 1200 x 39 mm K4892 DP Pietra Grey"]
["AP60SC114","Arbeitsplatte 600 x 39 mm SC114 Pt Schwarzschiefer",null,"AP90SC114","Arbeitsplatte 900 x 39 mm SC114 Pt Schwarzschiefer",null,"AP120SC114","Arbeitsplatte 1200 x 39 mm SC114 Pt Schwarzschiefer"]
["AP60S61011","Arbeitsplatte 600 x 39 mm S61011 RX Ipanema Weiss",null,"AP90S61011","Arbeitsplatte 900 x 39 mm S61011 RX Ipanema Weiss",null,"AP120S61011","Arbeitsplatte 1200 x 39 mm S61011 RX Ipanema Weiss"]
["AP60K4890","Arbeitsplatte 600 x 39 mm K4890 DP Arabescato",null,"AP90K4890","Arbeitsplatte 900 x 39 mm K4890 DP Arabescato",null,"AP120K4890","Arbeitsplatte 1200 x 39 mm K4890 DP Arabescato"]
["AP60K45273","Arbeitsplatte 600 x 39 mm K45273 DC Oldstone",null,"AP90K45273","Arbeitsplatte 900 x 39 mm K45273 DC Oldstone",null,"AP120K45273","Arbeitsplatte 1200 x 39 mm K45273 DC Oldstone"]
["AP60U11026","Arbeitsplatte 600 x 39 mm U11026 VV  Kristalweiss",null,"AP90U11026","Arbeitsplatte 900 x 39 mm U11026 VV  Kristalweiss",null,"AP120U11026","Arbeitsplatte 1200 x 39 mm U11026 VV  Kristalweiss"]
["AP60U12188","Arbeitsplatte 600 x 39 mm U12188 SD Lichtgrau",null,"AP90U12188","Arbeitsplatte 900 x 39 mm U12188 SD Lichtgrau",null,"AP120U12188","Arbeitsplatte 1200 x 39 mm U12188 SD Lichtgrau"]

{"sheet":"Nischenrückwände","index":3,"n_rows":40,"n_cols":2,"rows_kept":40,"cut":false,"hidden":false,"merged":[[0,0,0,1]]}
["Nischenrückwände"]
[]
["Materialcode","Kurzbeschreibung"]
["NRR20027","Nischenrückwand R20027 Pale Lancelot Oak"]
["NRR20128","Nischenrückwand R20128 Sonoma Eiche Hell"]
["NRK34139","Nischenrückwand K34139 Eiche Sanremo Sand"]
["NRK5414","Nischenrückwand K5414 Eiche Endgrain Classic"]
["NRK5284","Nischenrückwand K5284 Eiche Roosevelt"]
["NRK5413","Nischenrückwand K5413 Eiche Endgrain Cognac"]
["NRR24030","Nischenrückwand R24030 Buche Scandic Hell"]
["NRKBV932","Nischenrückwand KBV932 Atacama Kirschbaum"]
["NRKiR967","Nischenrückwand KiR967 Kiefer Rustikal"]
["NRR27001","Nischenrückwand R27001 Koenigsahorn"]
["NRNU725","Nischenrückwand NU725 Lyon Nussbaum "]
["NRK4946","Nischenrückwand K4946 Hemlock Lava"]
["NRK44375","Nischenrückwand K44375 Beton Art Perlgrau"]
["NRK44374","Nischenrückwand K44374 Beton Art Opalgrau"]
["NRK34321","Nischenrückwand K34321 Oxid"]
["NRK4398","Nischenrückwand K4398 Rusty Iron"]
["NRH437","Nischenrückwand H437 Campino Concrete"]
["NRH317","Nischenrückwand H317 Campino Patina"]
["NRME873","Nischenrückwand ME873 Metall Versicolour"]
["NRK5579","Nischenrückwand K5579 Oxid Dark Brown"]
["NRA356","Nischenrückwand A356 Schliff Edelstahl"]
["NRK5853","Nischenrückwand K5853 Titan"]
["NRK37978","Nischenrückwand K37978 Mocca"]
["NRK37979","Nischenrückwand K37979 Tabacco"]
["NRSL239","Nischenrückwand SL239 Salome Manila"]
["NRS60002","Nischenrückwand S60002 Belmont Beige"]
["NRS60004","Nischenrückwand S60004 Belmont Grau"]
["NRFR418","Nischenrückwand FR418 Freestone Grau"]
["NRS68013","Nischenrückwand S68013 Speckstein Schwarz"]
["NRSC475","Nischenrückwand SC475 PE Porto Schieferr"]
["NRK4892","Nischenrückwand K4892 Pietra Grey"]
["NRSC114","Nischenrückwand SC114 Schwarzschiefer"]
["NRS61011","Nischenrückwand S61011 Ipanema Weiss"]
["NRK4890","Nischenrückwand K4890 Arabescato"]
["NRK45273","Nischenrückwand K45273 Oldstone"]
["NRU11026","Nischenrückwand U11026 Kristalweiss"]
["NRU12188","Nischenrückwand U12188 Lichtgrau"]

{"sheet":"Dekorspanplatten","index":4,"n_rows":62,"n_cols":15,"rows_kept":62,"cut":false,"hidden":false,"merged":[[0,0,0,14],[2,1,2,2],[2,4,2,5],[2,7,2,8],[2,10,2,11],[2,13,2,14]]}
["Dekorspanplatten"]
[]
[null,"Korpusmaterial",null,null,"Unidekore",null,null,"Holzdekore",null,null,"Betondekore",null,null,"Steinreproduktionsdekore"]
[null,"Materialcode","Kurzbeschreibung",null,"Materialcode","Kurzbeschreibung",null,"Materialcode","Kurzbeschreibung",null,"Materialcode","Kurzbeschreibung",null,"Materialcode","Kurzbeschreibung"]
["8 mm Stark","DP08U10100","Dekorspanplatte 8 mm U10100 SD Schneeweiss",null,"DP08U11102VV","Dekorspanplatte 8 mm U11102VV Kreide",null,"DP08R20027","Dekorspanplatte 8 mm R20027 Pale Lancelot Oak",null,"DP08K44374","Dekorspanplatte 8 mm K44374 Beton Art Opalgrau",null,"DP08K34321","Dekorspanplatte 8 mm K34321 Oxid"]
[null,null,null,null,"DP08U11102XM/XT","Dekorspanplatte 8 mm U11102XM/XT Kreide",null,"DP08R20128","Dekorspanplatte 8 mm R20128 Sonoma Eiche Hell",null,"DP08K44375","Dekorspanplatte 8 mm K44375 Beton Art Perlgrau",null,"DP08K37978","Dekorspanplatte 8 mm K37978 Mocca"]
[null,null,null,null,"DP08U11102XG","Dekorspanplatte 8 mm U11102XG Kreide",null,"DP08K34139","Dekorspanplatte 8 mm K34139 Eiche Sanremo Sand",null,null,null,null,"DP08K37979","Dekorspanplatte 8 mm K37979 Tabacco"]
[null,null,null,null,"DP08K2507","Dekorspanplatte 8 mm K2507 Magnolia",null,"DP08K5414","Dekorspanplatte 8 mm K5414 Eiche Endgrain Classic",null,null,null,null,"DP08K4398","Dekorspanplatte 8 mm K4398 Rusty Iron"]
[null,null,null,null,"DP08K27045","Dekorspanplatte 8 mm K27045 Champagner",null,"DP08K5284","Dekorspanplatte 8 mm K5284 Eiche Roosevelt",null,null,null,null,"DP08H437","Dekorspanplatte 8 mm H437 Campino Concrete"]
[null,null,null,null,"DP08K2171","Dekorspanplatte 8 mm K2171 Achatgrau",null,"DP08K5413","Dekorspanplatte 8 mm K5413 Eiche Endgrain Cognac",null,null,null,null,"DP08H317","Dekorspanplatte 8 mm H317 Campino Patina"]
[null,null,null,null,"DP08K2164","Dekorspanplatte 8 mm K2164 Anthrazit",null,"DP08R24030","Dekorspanplatte 8 mm R24030 Buche Scandic Hell",null,null,null,null,"DP08ME873","Dekorspanplatte 8 mm ME873 Metall Versicolour"]
[null,null,null,null,"DP08K2190","Dekorspanplatte 8 mm K2190 Schwarz",null,"DP08KBV932","Dekorspanplatte 8 mm KBV932 Atacama Kirschbaum",null,null,null,null,"DP08SL239","Dekorspanplatte 8 mm SL239 Salome Manila"]
[null,null,null,null,"DP08A1","Dekorspanplatte 8 mm A1 Schwarz",null,"DP08KiR967","Dekorspanplatte 8 mm KiR967 Kiefer Rustikal",null,null,null,null,"DP08S60002","Dekorspanplatte 8 mm S60002 Belmont Beige"]
[null,null,null,null,"DP08U0720","Dekorspanplatte 8 mm U0720 Schwarz",null,"DP08R27001","Dekorspanplatte 8 mm R27001 Koenigsahorn",null,null,null,null,"DP08S60004","Dekorspanplatte 8 mm S60004 Belmont Grau"]
[null,null,null,null,null,null,null,"DP08NU725","Dekorspanplatte 8 mm NU725 Lyon Nussbaum ",null,null,null,null,"DP08FR418","Dekorspanplatte 8 mm FR418 Freestone Grau"]
[null,null,null,null,null,null,null,"DP08K4946","Dekorspanplatte 8 mm K4946 Hemlock Lava",null,null,null,null,"DP08S68013","Dekorspanplatte 8 mm S68013 Speckstein Schwarz"]
[null,null,null,null,null,null,null,null,null,null,null,null,null,"DP08SC114","Dekorspanplatte 8 mm SC114 Schwarzschiefer"]
[null,null,null,null,null,null,null,null,null,null,null,null,null,"DP08K5579","Dekorspanplatte 8 mm K5579 Oxid Dark Brown"]
[null,null,null,null,null,null,null,null,null,null,null,null,null,"DP08K4892","Dekorspanplatte 8 mm K4892 Pietra Grey"]
[null,null,null,null,null,null,null,null,null,null,null,null,null,"DP08S61011","Dekorspanplatte 8 mm S61011 Ipanema Weiss"]
[null,null,null,null,null,null,null,null,null,null,null,null,null,"DP08K45273","Dekorspanplatte 8 mm K45273 Oldstone"]
[null,null,null,null,null,null,null,null,null,null,null,null,null,"DP08K4890","Dekorspanplatte 8 mm K4890 Arabescato"]
[]
["13 mm Stark","DP13U10100","Dekorspanplatte 13 mm U10100 SD Schneeweiss"]
[]
["19 mm Stark","DP19U10100","Dekorspanplatte 19 mm U10100 SD Schneeweiss",null,"DP19U11102VV","Dekorspanplatte 19 mm U11102VV Kreide",null,"DP19R20027","Dekorspanplatte 19 mm R20027 Pale Lancelot Oak",null,"DP19K44374","Dekorspanplatte 19 mm K44374 Beton Art Opalgrau",null,"DP19K34321","Dekorspanplatte 19 mm K34321 Oxid"]
[null,null,null,null,"DP19U11102XM/XT","Dekorspanplatte 19 mm U11102XM/XT Kreide",null,"DP19R20128","Dekorspanplatte 19 mm R20128 Sonoma Eiche Hell",null,"DP19K44375","Dekorspanplatte 19 mm K44375 Beton Art Perlgrau",null,"DP19K37978","Dekorspanplatte 19 mm K37978 Mocca"]
[null,null,null,null,"DP19U11102XG","Dekorspanplatte 19 mm U11102XG Kreide",null,"DP19K34139","Dekorspanplatte 19 mm K34139 Eiche Sanremo Sand",null,null,null,null,"DP19K37979","Dekorspanplatte 19 mm K37979 Tabacco"]
[null,null,null,null,"DP19K2507","Dekorspanplatte 19 mm K2507 Magnolia",null,"DP19K5414","Dekorspanplatte 19 mm K5414 Eiche Endgrain Classic",null,null,null,null,"DP19K4398","Dekorspanplatte 19 mm K4398 Rusty Iron"]
[null,null,null,null,"DP19K27045","Dekorspanplatte 19 mm K27045 Champagner",null,"DP19K5284","Dekorspanplatte 19 mm K5284 Eiche Roosevelt",null,null,null,null,"DP19H437","Dekorspanplatte 19 mm H437 Campino Concrete"]
[null,null,null,null,"DP19K2171","Dekorspanplatte 19 mm K2171 Achatgrau",null,"DP19K5413","Dekorspanplatte 19 mm K5413 Eiche Endgrain Cognac",null,null,null,null,"DP19H317","Dekorspanplatte 19 mm H317 Campino Patina"]
[null,null,null,null,"DP19K2164","Dekorspanplatte 19 mm K2164 Anthrazit",null,"DP19R24030","Dekorspanplatte 19 mm R24030 Buche Scandic Hell",null,null,null,null,"DP19ME873","Dekorspanplatte 19 mm ME873 Metall Versicolour"]
[null,null,null,null,"DP19K2190","Dekorspanplatte 19 mm K2190 Schwarz",null,"DP19KBV932","Dekorspanplatte 19 mm KBV932 Atacama Kirschbaum",null,null,null,null,"DP19SL239","Dekorspanplatte 19 mm SL239 Salome Manila"]
[null,null,null,null,"DP19A1","Dekorspanplatte 19 mm A1 Schwarz",null,"DP19KiR967","Dekorspanplatte 19 mm KiR967 Kiefer Rustikal",null,null,null,null,"DP19S60002","Dekorspanplatte 19 mm S60002 Belmont Beige"]
[null,null,null,null,"DP19U0720","Dekorspanplatte 19 mm U0720 Schwarz",null,"DP19R27001","Dekorspanplatte 19 mm R27001 Koenigsahorn",null,null,null,null,"DP19S60004","Dekorspanplatte 19 mm S60004 Belmont Grau"]
[null,null,null,null,null,null,null,"DP19NU725","Dekorspanplatte 19 mm NU725 Lyon Nussbaum ",null,null,null,null,"DP19FR418","Dekorspanplatte 19 mm FR418 Freestone Grau"]
[null,null,null,null,null,null,null,"DP19K4946","Dekorspanplatte 19 mm K4946 Hemlock Lava",null,null,null,null,"DP19S68013","Dekorspanplatte 19 mm S68013 Speckstein Schwarz"]
[null,null,null,null,null,null,null,null,null,null,null,null,null,"DP19SC114","Dekorspanplatte 19 mm SC114 Schwarzschiefer"]
[null,null,null,null,null,null,null,null,null,null,null,null,null,"DP19K5579","Dekorspanplatte 19 mm K5579 Oxid Dark Brown"]
[null,null,null,null,null,null,null,null,null,null,null,null,null,"DP19K4892","Dekorspanplatte 19 mm K4892 Pietra Grey"]
[null,null,null,null,null,null,null,null,null,null,null,null,null,"DP19S61011","Dekorspanplatte 19 mm S61011 Ipanema Weiss"]
[null,null,null,null,null,null,null,null,null,null,null,null,null,"DP19K45273","Dekorspanplatte 19 mm K45273 Oldstone"]
[null,null,null,null,null,null,null,null,null,null,null,null,null,"DP19K4890","Dekorspanplatte 19 mm K4890 Arabescato"]
[]
["25 mm Stark","DP25U10100","Dekorspanplatte 25 mm U10100 SD Schneeweiss",null,"DP25U11102VV","Dekorspanplatte 25 mm U11102VV Kreide",null,"DP25R20027","Dekorspanplatte 25 mm R20027 Pale Lancelot Oak",null,"DP25K44374","Dekorspanplatte 25 mm K44374 Beton Art Opalgrau",null,"DP25K34321","Dekorspanplatte 25 mm K34321 Oxid"]
[null,null,null,null,"DP25U11102XM/XT","Dekorspanplatte 25 mm U11102XM/XT Kreide",null,"DP25R20128","Dekorspanplatte 25 mm R20128 Sonoma Eiche Hell",null,"DP25K44375","Dekorspanplatte 25 mm K44375 Beton Art Perlgrau",null,"DP25K37978","Dekorspanplatte 25 mm K37978 Mocca"]
[null,null,null,null,"DP25U11102XG","Dekorspanplatte 25 mm U11102XG Kreide",null,"DP25K34139","Dekorspanplatte 25 mm K34139 Eiche Sanremo Sand",null,null,null,null,"DP25K37979","Dekorspanplatte 25 mm K37979 Tabacco"]
[null,null,null,null,"DP25K2507","Dekorspanplatte 25 mm K2507 Magnolia",null,"DP25K5414","Dekorspanplatte 25 mm K5414 Eiche Endgrain Classic",null,null,null,null,"DP25K4398","Dekorspanplatte 25 mm K4398 Rusty Iron"]
[null,null,null,null,"DP25K27045","Dekorspanplatte 25 mm K27045 Champagner",null,"DP25K5284","Dekorspanplatte 25 mm K5284 Eiche Roosevelt",null,null,null,null,"DP25H437","Dekorspanplatte 25 mm H437 Campino Concrete"]
[null,null,null,null,"DP25K2171","Dekorspanplatte 25 mm K2171 Achatgrau",null,"DP25K5413","Dekorspanplatte 25 mm K5413 Eiche Endgrain Cognac",null,null,null,null,"DP25H317","Dekorspanplatte 25 mm H317 Campino Patina"]
[null,null,null,null,"DP25K2164","Dekorspanplatte 25 mm K2164 Anthrazit",null,"DP25R24030","Dekorspanplatte 25 mm R24030 Buche Scandic Hell",null,null,null,null,"DP25ME873","Dekorspanplatte 25 mm ME873 Metall Versicolour"]
[null,null,null,null,"DP25K2190","Dekorspanplatte 25 mm K2190 Schwarz",null,"DP25KBV932","Dekorspanplatte 25 mm KBV932 Atacama Kirschbaum",null,null,null,null,"DP25SL239","Dekorspanplatte 25 mm SL239 Salome Manila"]
[null,null,null,null,"DP25A1","Dekorspanplatte 25 mm A1 Schwarz",null,"DP25KiR967","Dekorspanplatte 25 mm KiR967 Kiefer Rustikal",null,null,null,null,"DP25S60002","Dekorspanplatte 25 mm S60002 Belmont Beige"]
[null,null,null,null,"DP25U0720","Dekorspanplatte 25 mm U0720 Schwarz",null,"DP25R27001","Dekorspanplatte 25 mm R27001 Koenigsahorn",null,null,null,null,"DP25S60004","Dekorspanplatte 25 mm S60004 Belmont Grau"]
[null,null,null,null,null,null,null,"DP25NU725","Dekorspanplatte 25 mm NU725 Lyon Nussbaum ",null,null,null,null,"DP25FR418","Dekorspanplatte 25 mm FR418 Freestone Grau"]
[null,null,null,null,null,null,null,"DP25K4946","Dekorspanplatte 25 mm K4946 Hemlock Lava",null,null,null,null,"DP25S68013","Dekorspanplatte 25 mm S68013 Speckstein Schwarz"]
[null,null,null,null,null,null,null,null,null,null,null,null,null,"DP25SC114","Dekorspanplatte 25 mm SC114 Schwarzschiefer"]
[null,null,null,null,null,null,null,null,null,null,null,null,null,"DP25K5579","Dekorspanplatte 25 mm K5579 Oxid Dark Brown"]
[null,null,null,null,null,null,null,null,null,null,null,null,null,"DP25K4892","Dekorspanplatte 25 mm K4892 Pietra Grey"]
[null,null,null,null,null,null,null,null,null,null,null,null,null,"DP25S61011","Dekorspanplatte 25 mm S61011 Ipanema Weiss"]
[null,null,null,null,null,null,null,null,null,null,null,null,null,"DP25K45273","Dekorspanplatte 25 mm K45273 Oldstone"]
[null,null,null,null,null,null,null,null,null,null,null,null,null,"DP25K4890","Dekorspanplatte 25 mm K4890 Arabescato"]

{"sheet":"Kanten","index":5,"n_rows":48,"n_cols":14,"rows_kept":48,"cut":false,"hidden":false,"merged":[[0,0,0,13],[1,0,1,1],[1,3,1,4],[1,6,1,7],[26,6,26,7],[1,9,1,10],[1,12,1,13]]}
["Kanten"]
["ABS-Kanten 23 x 2 mm",null,null,"ABS-Kanten 23 x 1 mm",null,null,"ABS-Kanten 33 x 2 mm",null,null,"PP-Kanten 43 x 1,5 mm",null,null,"Schutzkanten 0,4 mm"]
["Materialcode","Kurzbeschreibung",null,"Materialcode","Kurzbeschreibung",null,"Materialcode","Kurzbeschreibung",null,"Materialcode","Kurzbeschreibung",null,"Materialcode","Kurzbeschreibung"]
["ABS2320UNI","ABS-Kante 23 x 2,0 mm UNI Dekor (Bestellware)",null,"ABS2310UNI","ABS-Kante 23 x 1,0 mm UNI Dekor (Bestellware)",null,"ABS3320UNI","ABS-Kante 33 x 2,0 mm UNI Dekor (Bestellware)",null,"ABS4315UNI","PP-Kante 43 x 1,5 mm UNI Dekor (Bestellware)",null,"SK2304PASSEND","Schutzkante 23 x 0,4 mm Passendes Dekor"]
["ABS2320R20027","ABS-Kante 23 x 2,0 mm R20027 Pale Lancelot Oak",null,"ABS2310R20027","ABS-Kante 23 x 1,0 mm R20027 Pale Lancelot Oak",null,"ABS3320R20027","ABS-Kante 33 x 2,0 mm R20027 Pale Lancelot Oak",null,"PP4315R20027","PP-Kante 43 x 1,5 mm R20027 RT Pale Lancelot Oak",null,"SK2304U10100","Schutzkante 23 x 0,4 mm U10100 Schneeweiss"]
["ABS2320R20128","ABS-Kante 23 x 2,0 mm R20128 Sonoma Eiche Hell",null,"ABS2310R20128","ABS-Kante 23 x 1,0 mm R20128 Sonoma Eiche Hell",null,"ABS3320R20128","ABS-Kante 33 x 2,0 mm R20128 Sonoma Eiche Hell",null,"PP4315R20128","PP-Kante 43 x 1,5 mm R20128 RT Sonoma Eiche Hell",null,"SK3304U10100","Schutzkante 33 x 0,4 mm U10100 Schneeweiss"]
["ABS2320K34139","ABS-Kante 23 x 2,0 mm K34139 Eiche Sanremo Sand",null,"ABS2310K34139","ABS-Kante 23 x 1,0 mm K34139 Eiche Sanremo Sand",null,"ABS3320K34139","ABS-Kante 33 x 2,0 mm K34139 Eiche Sanremo Sand",null,"PP4315K34139","PP-Kante 43 x 1,5 mm K34139 AW Eiche Sanremo Sand",null,"SK4304U10100","Schutzkante 43 x 0,4 mm U10100 Schneeweiss"]
["ABS2320K5414","ABS-Kante 23 x 2,0 mm K5414 Eiche Endgrain Classic",null,"ABS2310K5414","ABS-Kante 23 x 1,0 mm K5414 Eiche Endgrain Classic",null,"ABS3320K5414","ABS-Kante 33 x 2,0 mm K5414 Eiche Endgrain Classic",null,"PP4315K5414","PP-Kante 43 x 1,5 mm K5414 AW Eiche Endgrain Classic",null,"SK2304R20027","Schutzkante 23 x 0,4 mm R20027"]
["ABS2320K5284","ABS-Kante 23 x 2,0 mm K5284 Eiche Roosevelt",null,"ABS2310K5284","ABS-Kante 23 x 1,0 mm K5284 Eiche Roosevelt",null,"ABS3320K5413","ABS-Kante 33 x 2,0 mm K5413 Eiche Endgrain Cognac",null,"PP4315K5284","PP-Kante 43 x 1,5 mm K5284 AN Eiche Roosevelt",null,"SK3304R20027","Schutzkante 33 x 0,4 mm R20027"]
["ABS2320K5413","ABS-Kante 23 x 2,0 mm K5413 Eiche Endgrain Cognac",null,"ABS2310K5413","ABS-Kante 23 x 1,0 mm K5413 Eiche Endgrain Cognac",null,"ABS3320KiR967","ABS-Kante 33 x 2,0 mm KiR967 Kiefer Rustikal",null,"PP4315K5413","PP-Kante 43 x 1,5 mm K5413 AW Eiche Endgrain Cognac",null,"SK2304U11102VV","Schutzkante 23 x 0,4 mm U11102VV"]
["ABS2320R24030","ABS-Kante 23 x 2,0 mm R24030 Buche Scandic Hell",null,"ABS2310R24030","ABS-Kante 23 x 1,0 mm R24030 Buche Scandic Hell",null,"ABS3320R27001","ABS-Kante 33 x 2,0 mm R27001 Koenigsahorn",null,"PP4315R24030","PP-Kante 43 x 1,5 mm R24030 FG Buche Scandic Hell",null,"SK3304U11102VV","Schutzkante 33 x 0,4 mm U11102VV"]
["ABS2320KiR967","ABS-Kante 23 x 2,0 mm KiR967 Kiefer Rustikal",null,"ABS2310KBV932","ABS-Kante 23 x 1,0 mm KBV932 Atacama Kirschbaum",null,"ABS3320K5853","ABS-Kante 33 x 2,0 mm K5853 Titan",null,"PP4315KBV932","PP-Kante 43 x 1,5 mm KBV932 Si Atacama Kirschbaum",null,"SK2304U11102XM/XT","Schutzkante 23 x 0,4 mm U11102XM/XT"]
["ABS2320R27001","ABS-Kante 23 x 2,0 mm R27001 Koenigsahorn",null,"ABS2310KiR967","ABS-Kante 23 x 1,0 mm KiR967 Kiefer Rustikal",null,"ABS3320U11102VV","ABS-Kante 33 x 2,0 mm U11102VV Kreide",null,"PP4315KiR967","PP-Kante 43 x 1,5 mm KiR967 In Kiefer Rustikal",null,"SK3304U11102XM/XT","Schutzkante 33 x 0,4 mm U11102XM/XT"]
["ABS2320K4946","ABS-Kante 23 x 2,0 mm K4946 Hemlock Lava",null,"ABS2310R27001","ABS-Kante 23 x 1,0 mm R27001 Koenigsahorn",null,"ABS3320U10100","ABS-Kante 33 x 2,0 mm U10100 Schneeweiss",null,"PP4315R27001","PP-Kante 43 x 1,5 mm R27001 VV Koenigsahorn",null,"SK2304U11102XG","Schutzkante 23 x 0,4 mm U11102XG"]
["ABS2320K44374","ABS-Kante 23 x 2,0 mm K44374 Beton Art Opalgrau",null,"ABS2310NU725","ABS-Kante 23 x 1,0 mm NU725 Lyon Nussbaum ",null,"ABS3320U11026","ABS-Kante 33 x 2,0 mm U11026 Kristalweiss",null,"PP4315NU725","PP-Kante 43 x 1,5 mm NU725 PoF Lyon Nussbaum ",null,"SK3304U11102XG","Schutzkante 33 x 0,4 mm U11102XG"]
["ABS2320K44375","ABS-Kante 23 x 2,0 mm K44375 Beton Art Perlgrau",null,"ABS2310K4946","ABS-Kante 23 x 1,0 mm K4946 Hemlock Lava",null,"ABS3320K2507","ABS-Kante 33 x 2,0 mm K2507 Magnolia",null,"PP4315K4946","PP-Kante 43 x 1,5 mm K4946 AT Hemlock Lava",null,"SK2304U10100","Schutzkante 23 x 0,4 mm U10100"]
["ABS2320K34321","ABS-Kante 23 x 2,0 mm K34321 Oxid",null,"ABS2310K44374","ABS-Kante 23 x 1,0 mm K44374 Beton Art Opalgrau",null,"ABS3320K27045","ABS-Kante 33 x 2,0 mm K27045 Champagner",null,"PP4315K44374","PP-Kante 43 x 1,5 mm K44374 DP Beton Art Opalgrau",null,"SK3304U10100","Schutzkante 33 x 0,4 mm U10100"]
["ABS2320K4398","ABS-Kante 23 x 2,0 mm K4398 Rusty Iron",null,"ABS2310K44375","ABS-Kante 23 x 1,0 mm K44375 Beton Art Perlgrau",null,"ABS3320U12188","ABS-Kante 33 x 2,0 mm U12188 Lichtgrau",null,"PP4315K44375","PP-Kante 43 x 1,5 mm K44375 DP Beton Perlgrau",null,"SK2304U11026","Schutzkante 23 x 0,4 mm U11026"]
["ABS2320K5579","ABS-Kante 23 x 2,0 mm K5579 Oxid Dark Brown",null,"ABS2310K34321","ABS-Kante 23 x 1,0 mm K34321 Oxid",null,"ABS3320K2171","ABS-Kante 33 x 2,0 mm K2171 Achatgrau",null,"PP4315K34321","PP-Kante 43 x 1,5 mm K34321 DP Oxid",null,"SK3304U11026","Schutzkante 33 x 0,4 mm U11026"]
["ABS2320K5853","ABS-Kante 23 x 2,0 mm K5853 Titan",null,"ABS2310K4398","ABS-Kante 23 x 1,0 mm K4398 Rusty Iron",null,"ABS3320K2164","ABS-Kante 33 x 2,0 mm K2164 Anthrazit",null,"PP4315K4398","PP-Kante 43 x 1,5 mm K4398 DP Rusty Iron",null,"SK2304K2507","Schutzkante 23 x 0,4 mm K2507"]
["ABS2320K4892","ABS-Kante 23 x 2,0 mm K4892 Pietra Grey",null,"ABS2310H437","ABS-Kante 23 x 1,0 mm H437 Campino Concrete",null,"ABS3320K2190","ABS-Kante 33 x 2,0 mm K2190 Schwarz",null,"PP4315H437","PP-Kante 43 x 1,5 mm H437 Ce Campino Concrete",null,"SK3304K2507","Schutzkante 33 x 0,4 mm K2507"]
["ABS2320U11102VV","ABS-Kante 23 x 2,0 mm U11102VV Kreide",null,"ABS2310H317","ABS-Kante 23 x 1,0 mm H317 Campino Patina",null,null,null,null,"PP4315H317","PP-Kante 43 x 1,5 mm H317 Ce Campino Patina",null,"SK2304K27045","Schutzkante 23 x 0,4 mm K27045"]
["ABS2320U11102XM/XT","ABS-Kante 23 x 2,0 mm U11102XM/XT Kreide",null,"ABS2310ME873","ABS-Kante 23 x 1,0 mm ME873 Metall Versicolour",null,null,null,null,"PP4315ME873","PP-Kante 43 x 1,5 mm ME873 Ce Metall Versicolour",null,"SK3304K27045","Schutzkante 33 x 0,4 mm K27045"]
["ABS2320U11102XG","ABS-Kante 23 x 2,0 mm U11102XG Kreide",null,"ABS2310K5579","ABS-Kante 23 x 1,0 mm K5579 Oxid Dark Brown",null,null,null,null,"PP4315K5579","PP-Kante 43 x 1,5 mm K5579 DP Oxid Dark Brown",null,"SK2304U12188","Schutzkante 23 x 0,4 mm U12188"]
["ABS2320U10100","ABS-Kante 23 x 2,0 mm U10100 Schneeweiss",null,"ABS2310A356","ABS-Kante 23 x 1,0 mm A356 Edelstahl",null,null,null,null,"PP4315K5853","PP-Kante 43 x 1,5 mm K5853 PE Titan",null,"SK3304U12188","Schutzkante 33 x 0,4 mm U12188"]
["ABS2320U11026","ABS-Kante 23 x 2,0 mm U11026 Kristalweiss",null,"ABS2310K5853","ABS-Kante 23 x 1,0 mm K5853 Titan",null,null,null,null,"PP4315K37978","PP-Kante 43 x 1,5 mm K37978 DC Mocca",null,"SK2304K2171","Schutzkante 23 x 0,4 mm K2171"]
["ABS2320K2507","ABS-Kante 23 x 2,0 mm K2507 Magnolia",null,"ABS2310K37978","ABS-Kante 23 x 1,0 mm K37978 Mocca",null,"ABS-Kanten 33 x 1 mm",null,null,"PP4315K37979","PP-Kante 43 x 1,5 mm K37979 DC Tabacco",null,"SK3304K2171","Schutzkante 33 x 0,4 mm K2171"]
["ABS2320K27045","ABS-Kante 23 x 2,0 mm K27045 Champagner",null,"ABS2310K37979","ABS-Kante 23 x 1,0 mm K37979 Tabacco",null,"Materialcode","Kurzbeschreibung",null,"PP4315SL239","PP-Kante 43 x 1,5 mm SL239 C Salome Manila",null,"SK2304K2164","Schutzkante 23 x 0,4 mm K2164"]
["ABS2320U12188","ABS-Kante 23 x 2,0 mm U12188 Lichtgrau",null,"ABS2310S60002","ABS-Kante 23 x 1,0 mm S60002 Belmont Beige",null,"ABS3310UNI","ABS-Kante 33 x 1,0 mm UNI Dekor (Bestellware)",null,"PP4315S60002","PP-Kante 43 x 1,5 mm S60002 FG Belmont Beige",null,"SK3304K2164","Schutzkante 33 x 0,4 mm K2164"]
["ABS2320K2171","ABS-Kante 23 x 2,0 mm K2171 Achatgrau",null,"ABS2310S60004","ABS-Kante 23 x 1,0 mm S60004 Belmont Grau",null,"ABS3310R20027","ABS-Kante 33 x 1,0 mm R20027 Pale Lancelot Oak",null,"PP4315S60004","PP-Kante 43 x 1,5 mm S60004 FG Belmont Grau",null,"SK2304K2190","Schutzkante 23 x 0,4 mm K2190"]
["ABS2320K2164","ABS-Kante 23 x 2,0 mm K2164 Anthrazit",null,"ABS2310FR418","ABS-Kante 23 x 1,0 mm FR418 Freestone Grau",null,"ABS3310R20128","ABS-Kante 33 x 1,0 mm R20128 Sonoma Eiche Hell",null,"PP4315FR418","PP-Kante 43 x 1,5 mm FR418 C Freestone Grau",null,"SK3304K2190","Schutzkante 33 x 0,4 mm K2190"]
["ABS2320K2190","ABS-Kante 23 x 2,0 mm K2190 Schwarz",null,"ABS2310S68013","ABS-Kante 23 x 1,0 mm S68013 Speckstein Schwarz",null,"ABS3310K34139","ABS-Kante 33 x 1,0 mm K34139 Eiche Sanremo Sand",null,"PP4315S68013","PP-Kante 43 x 1,5 mm S68013 SD Speckstein Schwarz",null,"SK2304A1","Schutzkante 23 x 0,4 mm A1"]
[null,null,null,"ABS2310SC475","ABS-Kante 23 x 1,0 mm SC475 Porto Schiefer",null,"ABS3310K5414","ABS-Kante 33 x 1,0 mm K5414 Eiche Endgrain Classic",null,"PP4315SC475","PP-Kante 43 x 1,5 mm SC475 Pe Porto Schiefer",null,"SK3304A1","Schutzkante 33 x 0,4 mm A1"]
[null,null,null,"ABS2310K4892","ABS-Kante 23 x 1,0 mm K4892 Pietra Grey",null,"ABS3310K5413","ABS-Kante 33 x 1,0 mm K5413 Eiche Endgrain Cognac",null,"PP4315K4892","PP-Kante 43 x 1,5 mm K4892 DP Pietra Grey",null,"SK2304U0720","Schutzkante 23 x 0,4 mm U0720"]
[null,null,null,"ABS2310SC114","ABS-Kante 23 x 1,0 mm SC114 Schwarzschiefer",null,"ABS3310KiR967","ABS-Kante 33 x 1,0 mm KiR967 Kiefer Rustikal",null,"PP4315SC114","PP-Kante 43 x 1,5 mm SC114 Pt Schwarzschiefer",null,"SK3304U0720","Schutzkante 33 x 0,4 mm U0720"]
[null,null,null,"ABS2310U11102VV","ABS-Kante 23 x 1,0 mm U11102VV Kreide",null,"ABS3310R27001","ABS-Kante 33 x 1,0 mm R27001 Koenigsahorn",null,"PP4315S61011","PP-Kante 43 x 1,5 mm S61011 RX Ipanema Weiss"]
[null,null,null,"ABS2310U11102XM/XT","ABS-Kante 23 x 1,0 mm U11102XM/XT Kreide",null,"ABS3310K5853","ABS-Kante 33 x 1,0 mm K5853 Titan",null,"PP4315K4890","PP-Kante 43 x 1,5 mm K4890 DP Arabescato"]
[null,null,null,"ABS2310U11102XG","ABS-Kante 23 x 1,0 mm U11102XG Kreide",null,"ABS3310U11102VV","ABS-Kante 33 x 1,0 mm U11102VV Kreide",null,"PP4315K45273","PP-Kante 43 x 1,5 mm K45273 DC Oldstone"]
[null,null,null,"ABS2310U10100","ABS-Kante 23 x 1,0 mm U10100 Schneeweiss",null,"ABS3310U10100","ABS-Kante 33 x 1,0 mm U10100 Schneeweiss",null,"PP4315U11026","PP-Kante 43 x 1,5 mm U11026 VV  Kristalweiss"]
[null,null,null,"ABS2310U11026","ABS-Kante 23 x 1,0 mm U11026 Kristalweiss",null,"ABS3310U11026","ABS-Kante 33 x 1,0 mm U11026 Kristalweiss",null,"PP4315U12188","PP-Kante 43 x 1,5 mm U12188 SD Lichtgrau"]
[null,null,null,"ABS2310K2507","ABS-Kante 23 x 1,0 mm K2507 Magnolia",null,"ABS3310K2507","ABS-Kante 33 x 1,0 mm K2507 Magnolia"]
[null,null,null,"ABS2310K27045","ABS-Kante 23 x 1,0 mm K27045 Champagner",null,"ABS3310K27045","ABS-Kante 33 x 1,0 mm K27045 Champagner"]
[null,null,null,"ABS2310U12188","ABS-Kante 23 x 1,0 mm U12188 Lichtgrau",null,"ABS3310U12188","ABS-Kante 33 x 1,0 mm U12188 Lichtgrau"]
[null,null,null,"ABS2310K2171","ABS-Kante 23 x 1,0 mm K2171 Achatgrau",null,"ABS3310K2171","ABS-Kante 33 x 1,0 mm K2171 Achatgrau"]
[null,null,null,"ABS2310K2164","ABS-Kante 23 x 1,0 mm K2164 Anthrazit",null,"ABS3310K2164","ABS-Kante 33 x 1,0 mm K2164 Anthrazit"]
[null,null,null,"ABS2310K2190","ABS-Kante 23 x 1,0 mm K2190 Schwarz",null,"ABS3310K2190","ABS-Kante 33 x 1,0 mm K2190 Schwarz"]
[null,null,null,"ABS2310A1","ABS-Kante 23 x 1,0 mm A1 Schwarz"]
[null,null,null,"ABS2310U0720","ABS-Kante 23 x 1,0 mm U0720 Schwarz"]